lending/lending_fUSD_20240120
["ID","MTS","AMOUNT","RATE_DAILY","PERIOD"]
[312271094,1705729848053,-500.0,0.00024657,2]
[312271095,1705729848064,-1290.78,0.00024657,2]
[312271096,1705729848073,-500.0,0.00024657,2]
[312271097,1705729848083,-494.98339464,0.00024657,2]
[312271098,1705729848091,-500.0,0.00024657,2]
[312271099,1705729848101,-500.0,0.00024657,2]
[312271100,1705729848112,-500.0,0.00024657,2]
[312271101,1705729848123,-500.0,0.00024657,2]
[312271102,1705729848133,-1005.05,0.00024657,2]
[312271103,1705729848142,-851.68,0.00024657,2]
[312271104,1705729848152,-500.0,0.00024657,2]
[312271105,1705729848161,-500.0,0.00024657,2]
[312271106,1705729848171,-641.01,0.00024657,2]
[312271107,1705729848180,-510.57056104,0.00024657,2]
[312271108,1705729848190,-598.25,0.00024657,2]
[312271109,1705729848199,-302.6553341,0.00024657,2]
[312271110,1705729848218,-197.3446659,0.00024657,2]
[312271111,1705729848228,-352.90667071,0.00024657,2]
[312271112,1705729848241,-147.09332929,0.00024657,2]
[312271113,1705729848251,-384.72393688,0.00024657,2]
[312271114,1705729848260,-537.88378491,0.00024657,2]
[312271118,1705730154537,155.0,0.00023875,30]
[312271119,1705730172510,158.1717077,0.00023875,30]
[312271120,1705730337741,-201.0,0.00020934,2]
[312271121,1705730372199,1809.0,0.00020934,2]
[312271122,1705730402073,150.0,0.00020933,2]
[312271123,1705730468714,1860.0,0.00020933,2]
[312271124,1705730468738,2010.0,0.00020933,2]
[312271125,1705730468761,2010.0,0.00020933,2]
[312271126,1705730568503,-2010.0,0.00020933,2]
[312271127,1705730578503,172.12,0.00016712,2]
[312271128,1705730591434,-150.0,0.00020932,2]
[312271129,1705730591457,-16545.02684994,0.00020933,2]
[312271138,1705730957616,154.78275632,0.00020833,2]
[312271183,1705731032403,-1317.76550808,0.00020931,2]
[312271184,1705731032438,-285.0,0.00020931,2]
[312271185,1705731032494,-418.48892121,0.00020931,2]
[312271186,1705731032504,-667.96898179,0.00020931,2]
[312271187,1705731032514,-150.0,0.00020931,2]
[312271188,1705731032523,-3798.6361802,0.00020932,2]
[312271189,1705731032533,-26150.0,0.00020933,2]
[312271190,1705731032542,-154.78275629,0.0002147,2]
[312271191,1705731032551,-278.73030459,0.00022,2]
[312271192,1705731032561,-154.78275629,0.00022107,2]
[312271193,1705731032571,-201.0,0.00022189,2]
[312271194,1705731032580,-360.0,0.00022503,2]
[312271195,1705731032590,-200.0,0.0002252,2]
[312271196,1705731032600,-154.78275629,0.00022743,2]
[312271197,1705731032609,-250.0,0.00022752,2]
[312271198,1705731032619,-176.89,0.00022763,2]
[312271199,1705731032629,-23880.0,0.00022783,2]
[312271200,1705731032638,-200.0,0.00022786,2]
[312271201,1705731032648,-1101.48,0.00022792,2]
[312271202,1705731032657,-301.77,0.00022796,2]
[312271203,1705731032668,-250.0,0.00022802,2]
[312271204,1705731032678,-150.57,0.0002283,2]
[312271205,1705731032688,-887.42,0.00022833,2]
[312271206,1705731032697,-4490.32,0.00022867,2]
[312271207,1705731032707,-418.27,0.00022877,2]
[312271208,1705731032716,-2000.0,0.00022882,2]
[312271209,1705731032726,-158.68,0.00022939,2]
[312271210,1705731032735,-200.0,0.00022961,2]
[312271211,1705731032744,-445.31,0.00023009,2]
[312271212,1705731032754,-640.0,0.00023038,2]
[312271213,1705731032764,-170.5,0.00023072,2]
[312271214,1705731032773,-161.43,0.00023114,2]
[312271215,1705731032783,-158.68,0.00023237,2]
[312271216,1705731032792,-523.67184027,0.00023261,2]
[312271217,1705731032802,-165.11134404,0.00023261,2]
[312271218,1705731032811,-221.00974885,0.00023261,2]
[312271219,1705731032820,-3654.80171512,0.00023261,2]
[312271220,1705731032830,-1312.84936448,0.00023261,2]
[312271221,1705731032839,-155.54682715,0.00023261,2]
[312271222,1705731032852,-196.54647125,0.00023262,2]
[312271223,1705731032862,-1044.13037654,0.00023262,2]
[312271224,1705731032871,-285.28736464,0.00023263,2]
[312271225,1705731032880,-500.0,0.00023263,2]
[312271226,1705731032891,-163.1,0.00023376,2]
[312271227,1705731032901,-150.57,0.00023378,2]
[312271228,1705731032911,-154.78275629,0.0002338,2]
[312271229,1705731032921,-161.43,0.00023391,2]
[312271230,1705731032934,-250.0,0.000235,2]
[312271231,1705731032944,-158.68,0.00023536,2]
[312271232,1705731032953,-3190.67771766,0.00023669,2]
[312271233,1705731032963,-161.43,0.00023669,2]
[312271234,1705731032972,-682.7491,0.00023676,2]
[312271235,1705731032982,-1444.7711,0.00023676,2]
[312271236,1705731032993,-2245.7248,0.00023676,2]
[312271237,1705731033002,-14992.8662,0.00023676,2]
[312271238,1705731033012,-19511.6353,0.00023676,2]
[312271239,1705731033022,-158.68,0.00023835,2]
[312271240,1705731033031,-150.57,0.00023926,2]
[312271241,1705731033041,-161.43,0.00023946,2]
[312271242,1705731033050,-887.42,0.00023975,2]
[312271243,1705731033059,-250.0,0.00024,2]
[312271244,1705731033069,-154.78275629,0.00024017,2]
[312271245,1705731033079,-158.68,0.00024134,2]
[312271246,1705731033089,-445.31,0.00024159,2]
[312271247,1705731033098,-161.43,0.00024224,2]
[312271248,1705731033108,-2888.0,0.000243,2]
[312271249,1705731033117,-1000.0,0.000243,2]
[312271250,1705731033127,-1000.0,0.000243,2]
[312271251,1705731033136,-430.176,0.00024308,2]
[312271252,1705731033146,-603.011,0.00024308,2]
[312271253,1705731033156,-1011.096,0.00024308,2]
[312271254,1705731033165,-1952.76,0.00024308,2]
[312271255,1705731033174,-437.596,0.00024308,2]
[312271256,1705731033184,-238.986,0.00024308,2]
[312271257,1705731033193,-876.711,0.00024308,2]
[312271258,1705731033202,-515.732,0.00024308,2]
[312271259,1705731033212,-831.276,0.00024308,2]
[312271260,1705731033221,-238.736,0.00024308,2]
[312271261,1705731033230,-8206.129,0.00024308,2]
[312271262,1705731033239,-735.97282279,0.00024308,2]
[312271263,1705731033252,-308.5094613,0.00024308,2]
[312271264,1705731033264,-1875.84371591,0.00024308,2]
[312271265,1705731033273,-49.05302877,0.00024308,2]
[312271266,1705731033329,-2999.03752668,0.00024308,2]
[312271273,1705731038379,-3476.33330977,0.00024308,2]
[312271274,1705731038434,-927.88113478,0.00024308,2]
[312271275,1705731038443,-84.69086522,0.00024308,2]
[312271276,1705731038454,-653.67901261,0.00024308,2]
[312271277,1705731038542,-608.0627175,0.00024308,2]
[312271278,1705731038722,-2912.12679887,0.00024308,2]
[312271287,1705731040942,-209.13,0.00023658,2]
[312271288,1705731040951,-1360.0026058,0.00024308,2]
[312271289,1705731040961,-2286.441,0.00024308,2]
[312271290,1705731040970,-213.722,0.00024308,2]
[312271291,1705731040981,-1056.142,0.00024308,2]
[312271292,1705731040991,-30447.0,0.000244,2]
[312271293,1705731041000,-1101.48,0.00024436,2]
[312271294,1705731041010,-150.57,0.00024474,2]
[312271295,1705731041020,-521.22610131,0.000245,2]
[312271296,1705731041032,-250.0,0.000245,2]
[312271297,1705731041041,-161.43,0.00024501,2]
[312271298,1705731041051,-1000.0,0.00024557,2]
[312271299,1705731041060,-299.6565,0.00024557,2]
[312271300,1705731041070,-250.0,0.00024557,2]
[312271301,1705731041081,-5000.0,0.00024557,2]
[312271302,1705731041092,-500.0,0.00024596,2]
[312271303,1705731041103,-200.0,0.00024596,2]
[312271304,1705731041112,-200.0,0.00024596,2]
[312271305,1705731041122,-1018.0,0.000246,2]
[312271306,1705731041131,-150.0,0.00024617,2]
[312271307,1705731041140,-269.60072076,0.00024625,3]
[312271308,1705731041150,-800.0,0.0002463,2]
[312271309,1705731041159,-800.0,0.0002463,2]
[312271310,1705731041168,-800.0,0.0002463,2]
[312271311,1705731041178,-150.0,0.00024645,2]
[312271312,1705731041187,-150.0,0.00024647,2]
[312271313,1705731041197,-150.0,0.00024648,2]
[312271314,1705731041206,-150.0,0.0002465,2]
[312271315,1705731041216,-154.78275629,0.00024654,2]
[312271316,1705731041225,-247.52330054,0.00024655,2]
[312271317,1705731041234,-1256.24889353,0.00024655,2]
[312271318,1705731041243,-1442.1042752,0.00024655,2]
[312271319,1705731041252,-150.0,0.00024655,2]
[312271320,1705731041261,-155.16590991,0.00024656,2]
[312271321,1705731041273,-500.0,0.00024657,2]
[312271322,1705731041282,-500.0,0.00024657,2]
[312271323,1705731041291,-500.0,0.00024657,2]
[312271324,1705731041300,-500.0,0.00024657,2]
[312271325,1705731041309,-500.0,0.00024657,2]
[312271326,1705731041318,-500.0,0.00024657,2]
[312271327,1705731041327,-500.0,0.00024657,2]
[312271328,1705731041336,-500.0,0.00024657,2]
[312271329,1705731041345,-500.0,0.00024657,2]
[312271330,1705731041354,-500.0,0.00024657,2]
[312271331,1705731041363,-500.0,0.00024657,2]
[312271332,1705731041372,-500.0,0.00024657,2]
[312271333,1705731041382,-436.7997662,0.00024657,2]
[312271334,1705731041391,-500.0,0.00024657,2]
[312271335,1705731041400,-500.0,0.00024657,2]
[312271336,1705731041409,-500.0,0.00024657,2]
[312271337,1705731041418,-500.0,0.00024657,2]
[312271338,1705731041427,-500.0,0.00024657,2]
[312271339,1705731041437,-500.0,0.00024657,2]
[312271340,1705731041446,-502.08199308,0.00024657,2]
[312271341,1705731041455,-500.0,0.00024657,2]
[312271342,1705731041465,-508.55829176,0.00024657,2]
[312271343,1705731041474,-500.0,0.00024657,2]
[312271344,1705731041483,-500.0,0.00024657,2]
[312271345,1705731041491,-500.0,0.00024657,2]
[312271346,1705731041501,-500.0,0.00024657,2]
[312271347,1705731041510,-500.0,0.00024657,2]
[312271348,1705731041518,-1125.53,0.00024657,2]
[312271349,1705731041529,-500.0,0.00024657,2]
[312271350,1705731041539,-168.9497879,0.00024657,2]
[312271351,1705731041548,-500.0,0.00024657,2]
[312271352,1705731041557,-500.0,0.00024657,2]
[312271353,1705731041567,-500.0,0.00024657,2]
[312271354,1705731041576,-500.0,0.00024657,2]
[312271355,1705731041585,-500.0,0.00024657,2]
[312271356,1705731041594,-500.0,0.00024657,2]
[312271357,1705731041603,-500.0,0.00024657,2]
[312271358,1705731041612,-500.0,0.00024657,2]
[312271359,1705731041621,-500.0,0.00024657,2]
[312271360,1705731041630,-500.0,0.00024657,2]
[312271361,1705731041639,-453.5459714,0.00024657,2]
[312271362,1705731041649,-509.94851264,0.00024657,2]
[312271363,1705731041658,-500.0,0.00024657,2]
[312271364,1705731041667,-500.0,0.00024657,2]
[312271365,1705731041676,-500.0,0.00024657,2]
[312271366,1705731041685,-500.0,0.00024657,2]
[312271367,1705731041695,-500.0,0.00024657,2]
[312271368,1705731041704,-500.0,0.00024657,2]
[312271369,1705731041713,-500.0,0.00024657,2]
[312271370,1705731041722,-500.0,0.00024657,2]
[312271371,1705731041731,-500.0,0.00024657,2]
[312271372,1705731041740,-500.0,0.00024657,2]
[312271373,1705731041749,-500.0,0.00024657,2]
[312271374,1705731041758,-500.0,0.00024657,2]
[312271375,1705731041767,-533.53815961,0.00024657,2]
[312271376,1705731041777,-500.0,0.00024657,2]
[312271377,1705731041786,-500.0,0.00024657,2]
[312271378,1705731041795,-500.0,0.00024657,2]
[312271379,1705731041804,-500.0,0.00024657,2]
[312271380,1705731041813,-500.0,0.00024657,2]
[312271381,1705731041822,-500.0,0.00024657,2]
[312271382,1705731041831,-500.0,0.00024657,2]
[312271383,1705731041840,-500.0,0.00024657,2]
[312271384,1705731041854,-500.0,0.00024657,2]
[312271385,1705731041863,-500.0,0.00024657,2]
[312271386,1705731041872,-500.0,0.00024657,2]
[312271387,1705731041882,-500.0,0.00024657,2]
[312271388,1705731041892,-683.75,0.00024657,2]
[312271389,1705731041901,-500.0,0.00024657,2]
[312271390,1705731041910,-500.0,0.00024657,2]
[312271391,1705731041920,-500.0,0.00024657,2]
[312271392,1705731041930,-500.0,0.00024657,2]
[312271393,1705731041939,-500.0,0.00024657,2]
[312271394,1705731041949,-500.0,0.00024657,2]
[312271395,1705731041958,-500.0,0.00024657,2]
[312271396,1705731041967,-500.0,0.00024657,2]
[312271397,1705731041976,-500.0,0.00024657,2]
[312271398,1705731041987,-500.0,0.00024657,2]
[312271399,1705731041996,-500.0,0.00024657,2]
[312271400,1705731042005,-267.29556504,0.00024657,2]
[312271401,1705731042015,-500.0,0.00024657,2]
[312271402,1705731042026,-500.0,0.00024657,2]
[312271403,1705731042035,-500.0,0.00024657,2]
[312271404,1705731042044,-500.0,0.00024657,2]
[312271405,1705731042053,-500.0,0.00024657,2]
[312271406,1705731042062,-500.0,0.00024657,2]
[312271407,1705731042071,-500.0,0.00024657,2]
[312271408,1705731042081,-488.37395999,0.00024657,2]
[312271409,1705731042091,-500.0,0.00024657,2]
[312271410,1705731042100,-500.0,0.00024657,2]
[312271411,1705731042109,-500.0,0.00024657,2]
[312271412,1705731042119,-500.0,0.00024657,2]
[312271413,1705731042128,-500.0,0.00024657,2]
[312271414,1705731042137,-500.0,0.00024657,2]
[312271415,1705731042146,-500.0,0.00024657,2]
[312271416,1705731042156,-500.0,0.00024657,2]
[312271417,1705731042165,-500.0,0.00024657,2]
[312271418,1705731042174,-500.0,0.00024657,2]
[312271419,1705731042183,-500.0,0.00024657,2]
[312271420,1705731042193,-500.0,0.00024657,2]
[312271421,1705731042202,-500.0,0.00024657,2]
[312271422,1705731042211,-500.0,0.00024657,2]
[312271423,1705731042220,-500.0,0.00024657,2]
[312271424,1705731042229,-500.0,0.00024657,2]
[312271425,1705731042238,-500.0,0.00024657,2]
[312271426,1705731042248,-528.83768231,0.00024657,2]
[312271427,1705731042257,-500.0,0.00024657,2]
[312271428,1705731042267,-500.0,0.00024657,2]
[312271429,1705731042277,-500.0,0.00024657,2]
[312271430,1705731042286,-500.0,0.00024657,2]
[312271431,1705731042295,-508.99362132,0.00024657,2]
[312271432,1705731042305,-500.0,0.00024657,2]
[312271433,1705731042314,-500.0,0.00024657,2]
[312271434,1705731042324,-500.0,0.00024657,2]
[312271435,1705731042333,-500.0,0.00024657,2]
[312271436,1705731042342,-519.25152479,0.00024657,2]
[312271437,1705731042351,-500.0,0.00024657,2]
[312271438,1705731042360,-500.0,0.00024657,2]
[312271439,1705731042369,-500.0,0.00024657,2]
[312271440,1705731042378,-500.0,0.00024657,2]
[312271441,1705731042387,-511.57359158,0.00024657,2]
[312271442,1705731042396,-500.0,0.00024657,2]
[312271443,1705731042405,-500.0,0.00024657,2]
[312271444,1705731042414,-500.0,0.00024657,2]
[312271445,1705731042425,-500.0,0.00024657,2]
[312271446,1705731042434,-500.0,0.00024657,2]
[312271447,1705731042444,-517.08308336,0.00024657,2]
[312271448,1705731042453,-500.0,0.00024657,2]
[312271449,1705731042462,-500.0,0.00024657,2]
[312271450,1705731042471,-500.0,0.00024657,2]
[312271451,1705731042480,-500.0,0.00024657,2]
[312271452,1705731042489,-500.0,0.00024657,2]
[312271453,1705731042498,-500.0,0.00024657,2]
[312271454,1705731042507,-500.0,0.00024657,2]
[312271455,1705731042516,-572.87433827,0.00024657,2]
[312271456,1705731042526,-500.0,0.00024657,2]
[312271457,1705731042535,-500.0,0.00024657,2]
[312271458,1705731042544,-500.0,0.00024657,2]
[312271459,1705731042553,-500.0,0.00024657,2]
[312271460,1705731042563,-500.0,0.00024657,2]
[312271461,1705731042572,-500.0,0.00024657,2]
[312271462,1705731042581,-500.0,0.00024657,2]
[312271463,1705731042590,-500.0,0.00024657,2]
[312271464,1705731042600,-500.0,0.00024657,2]
[312271465,1705731042609,-500.0,0.00024657,2]
[312271466,1705731042619,-500.0,0.00024657,2]
[312271467,1705731042629,-500.0,0.00024657,2]
[312271468,1705731042639,-500.0,0.00024657,2]
[312271469,1705731042648,-500.0,0.00024657,2]
[312271470,1705731042657,-500.0,0.00024657,2]
[312271471,1705731042667,-500.0,0.00024657,2]
[312271472,1705731042676,-500.0,0.00024657,2]
[312271473,1705731042685,-500.0,0.00024657,2]
[312271474,1705731042694,-198.59008513,0.00024657,2]
[312271475,1705731042703,-521.39293465,0.00024657,2]
[312271476,1705731042712,-500.0,0.00024657,2]
[312271477,1705731042723,-500.0,0.00024657,2]
[312271478,1705731042733,-296.30625762,0.00024657,2]
[312271479,1705731042742,-500.0,0.00024657,2]
[312271480,1705731042751,-500.0,0.00024657,2]
[312271481,1705731042760,-500.0,0.00024657,2]
[312271482,1705731042770,-500.0,0.00024657,2]
[312271483,1705731042779,-509.20791786,0.00024657,2]
[312271484,1705731042787,-500.0,0.00024657,2]
[312271485,1705731042797,-500.0,0.00024657,2]
[312271486,1705731042806,-500.0,0.00024657,2]
[312271487,1705731042815,-500.0,0.00024657,2]
[312271488,1705731042825,-500.0,0.00024657,2]
[312271489,1705731042834,-500.0,0.00024657,2]
[312271490,1705731042844,-500.0,0.00024657,2]
[312271491,1705731042856,-500.0,0.00024657,2]
[312271492,1705731042874,-500.0,0.00024657,2]
[312271493,1705731042883,-500.0,0.00024657,2]
[312271494,1705731042892,-500.0,0.00024657,2]
[312271495,1705731042901,-500.0,0.00024657,2]
[312271496,1705731042910,-500.0,0.00024657,2]
[312271497,1705731042919,-500.0,0.00024657,2]
[312271498,1705731042928,-500.0,0.00024657,2]
[312271499,1705731042937,-500.0,0.00024657,2]
[312271500,1705731042946,-500.0,0.00024657,2]
[312271501,1705731042956,-518.14028696,0.00024657,2]
[312271502,1705731042965,-500.0,0.00024657,2]
[312271503,1705731042974,-500.0,0.00024657,2]
[312271504,1705731042985,-500.0,0.00024657,2]
[312271505,1705731042995,-516.72706331,0.00024657,2]
[312271506,1705731043004,-500.0,0.00024657,2]
[312271507,1705731043014,-500.0,0.00024657,2]
[312271508,1705731043025,-150.0,0.00024657,2]
[312271509,1705731043034,-500.0,0.00024657,2]
[312271510,1705731043045,-500.0,0.00024657,2]
[312271511,1705731043054,-500.0,0.00024657,2]
[312271512,1705731043063,-500.0,0.00024657,2]
[312271513,1705731043072,-500.0,0.00024657,2]
[312271514,1705731043082,-500.0,0.00024657,2]
[312271515,1705731043091,-517.84540609,0.00024657,2]
[312271517,1705731043100,-500.0,0.00024657,2]
[312271519,1705731043109,-500.0,0.00024657,2]
[312271520,1705731043118,-509.3068069,0.00024657,2]
[312271521,1705731043127,-500.0,0.00024657,2]
[312271522,1705731043137,-502.49383688,0.00024657,2]
[312271523,1705731043146,-500.0,0.00024657,2]
[312271525,1705731043156,-500.0,0.00024657,2]
[312271526,1705731043166,-500.0,0.00024657,2]
[312271527,1705731043175,-516.00708064,0.00024657,2]
[312271528,1705731043184,-500.0,0.00024657,2]
[312271529,1705731043193,-500.0,0.00024657,2]
[312271530,1705731043205,-500.0,0.00024657,2]
[312271531,1705731043215,-500.0,0.00024657,2]
[312271532,1705731043226,-500.0,0.00024657,2]
[312271533,1705731043235,-500.0,0.00024657,2]
[312271534,1705731043244,-500.0,0.00024657,2]
[312271535,1705731043254,-490.0,0.00024657,2]
[312271536,1705731043264,-500.0,0.00024657,2]
[312271537,1705731043274,-500.0,0.00024657,2]
[312271538,1705731043283,-511.44933147,0.00024657,2]
[312271539,1705731043292,-500.0,0.00024657,2]
[312271540,1705731043302,-500.0,0.00024657,2]
[312271541,1705731043311,-500.0,0.00024657,2]
[312271542,1705731043321,-500.0,0.00024657,2]
[312271543,1705731043330,-500.0,0.00024657,2]
[312271544,1705731043339,-500.0,0.00024657,2]
[312271545,1705731043348,-512.36222816,0.00024657,2]
[312271546,1705731043357,-500.0,0.00024657,2]
[312271547,1705731043366,-500.0,0.00024657,2]
[312271548,1705731043375,-500.0,0.00024657,2]
[312271549,1705731043384,-510.14453622,0.00024657,2]
[312271550,1705731043393,-500.0,0.00024657,2]
[312271551,1705731043402,-500.0,0.00024657,2]
[312271552,1705731043411,-500.0,0.00024657,2]
[312271553,1705731043420,-500.0,0.00024657,2]
[312271554,1705731043430,-384.98291693,0.00024657,2]
[312271555,1705731043646,-500.0,0.00024657,2]
[312271556,1705731043657,-500.0,0.00024657,2]
[312271557,1705731043666,-500.0,0.00024657,2]
[312271558,1705731043676,-500.0,0.00024657,2]
[312271559,1705731043686,-269.4897151,0.00024657,2]
[312271560,1705731043695,-500.0,0.00024657,2]
[312271561,1705731043704,-500.0,0.00024657,2]
[312271562,1705731043714,-508.03874061,0.00024657,2]
[312271563,1705731043724,-520.00680424,0.00024657,2]
[312271564,1705731043733,-500.0,0.00024657,2]
[312271565,1705731043743,-500.0,0.00024657,2]
[312271566,1705731043752,-500.0,0.00024657,2]
[312271567,1705731043762,-500.0,0.00024657,2]
[312271568,1705731043772,-520.83572149,0.00024657,2]
[312271569,1705731043785,-500.0,0.00024657,2]
[312271570,1705731043795,-500.0,0.00024657,2]
[312271572,1705731043804,-500.0,0.00024657,2]
[312271574,1705731043813,-229.26195923,0.00024657,2]
[312271575,1705731043823,-500.0,0.00024657,2]
[312271576,1705731043832,-629.14069569,0.00024657,2]
[312271577,1705731043841,-500.0,0.00024657,2]
[312271578,1705731043855,-500.0,0.00024657,2]
[312271579,1705731043864,-542.58968276,0.00024657,2]
[312271580,1705731043873,-511.99154053,0.00024657,2]
[312271581,1705731043882,-500.0,0.00024657,2]
[312271582,1705731043892,-500.0,0.00024657,2]
[312271583,1705731043902,-500.0,0.00024657,2]
[312271585,1705731043911,-500.0,0.00024657,2]
[312271587,1705731043921,-500.0,0.00024657,2]
[312271589,1705731043932,-500.0,0.00024657,2]
[312271591,1705731043944,-502.71533385,0.00024657,2]
[312271593,1705731043954,-500.0,0.00024657,2]
[312271595,1705731043963,-500.0,0.00024657,2]
[312271596,1705731043973,-500.0,0.00024657,2]
[312271597,1705731043984,-500.0,0.00024657,2]
[312271598,1705731043993,-500.0,0.00024657,2]
[312271599,1705731044002,-500.0,0.00024657,2]
[312271600,1705731044011,-500.0,0.00024657,2]
[312271601,1705731044021,-169.96850189,0.00024657,2]
[312271602,1705731044032,-500.0,0.00024657,2]
[312271603,1705731044041,-500.0,0.00024657,2]
[312271604,1705731044051,-500.0,0.00024657,2]
[312271605,1705731044060,-500.0,0.00024657,2]
[312271606,1705731044069,-500.0,0.00024657,2]
[312271607,1705731044079,-509.18120147,0.00024657,2]
[312271608,1705731044088,-500.0,0.00024657,2]
[312271609,1705731044097,-500.0,0.00024657,2]
[312271610,1705731044107,-500.0,0.00024657,2]
[312271611,1705731044116,-500.0,0.00024657,2]
[312271612,1705731044126,-500.0,0.00024657,2]
[312271613,1705731044135,-500.0,0.00024657,2]
[312271614,1705731044145,-500.0,0.00024657,2]
[312271615,1705731044154,-500.0,0.00024657,2]
[312271616,1705731044163,-328.20804057,0.00024657,2]
[312271617,1705731044173,-500.0,0.00024657,2]
[312271618,1705731044182,-500.0,0.00024657,2]
[312271619,1705731044192,-501.25016436,0.00024657,2]
[312271620,1705731044201,-500.0,0.00024657,2]
[312271621,1705731044211,-500.0,0.00024657,2]
[312271622,1705731044221,-500.0,0.00024657,2]
[312271623,1705731044230,-507.06729534,0.00024657,2]
[312271624,1705731044239,-500.0,0.00024657,2]
[312271625,1705731044248,-500.0,0.00024657,2]
[312271626,1705731044258,-500.0,0.00024657,2]
[312271627,1705731044266,-500.0,0.00024657,2]
[312271628,1705731044276,-500.0,0.00024657,2]
[312271629,1705731044285,-500.0,0.00024657,2]
[312271630,1705731044294,-500.0,0.00024657,2]
[312271631,1705731044303,-500.0,0.00024657,2]
[312271632,1705731044312,-500.0,0.00024657,2]
[312271633,1705731044322,-500.0,0.00024657,2]
[312271634,1705731044331,-500.0,0.00024657,2]
[312271635,1705731044340,-500.0,0.00024657,2]
[312271636,1705731044349,-500.0,0.00024657,2]
[312271637,1705731044358,-500.0,0.00024657,2]
[312271638,1705731044367,-500.0,0.00024657,2]
[312271639,1705731044376,-521.96983673,0.00024657,2]
[312271640,1705731044385,-401.55506835,0.00024657,2]
[312271641,1705731044394,-500.0,0.00024657,2]
[312271642,1705731044403,-500.0,0.00024657,2]
[312271643,1705731044413,-500.0,0.00024657,2]
[312271644,1705731044422,-606.40339522,0.00024657,2]
[312271645,1705731044431,-500.0,0.00024657,2]
[312271646,1705731044440,-500.0,0.00024657,2]
[312271648,1705731044449,-500.0,0.00024657,2]
[312271649,1705731044458,-500.0,0.00024657,2]
[312271650,1705731044467,-500.0,0.00024657,2]
[312271651,1705731044476,-500.0,0.00024657,2]
[312271652,1705731044485,-500.0,0.00024657,2]
[312271653,1705731044494,-518.93703312,0.00024657,2]
[312271654,1705731044503,-500.0,0.00024657,2]
[312271655,1705731044512,-500.0,0.00024657,2]
[312271656,1705731044521,-610.55846763,0.00024657,2]
[312271657,1705731044531,-500.0,0.00024657,2]
[312271658,1705731044540,-510.63872042,0.00024657,2]
[312271659,1705731044548,-845.5,0.00024657,2]
[312271660,1705731044558,-500.0,0.00024657,2]
[312271661,1705731044567,-500.0,0.00024657,2]
[312271662,1705731044575,-500.0,0.00024657,2]
[312271663,1705731044584,-441.63867228,0.00024657,2]
[312271664,1705731044593,-500.0,0.00024657,2]
[312271665,1705731044603,-500.0,0.00024657,2]
[312271666,1705731044612,-1886.79,0.00024657,2]
[312271667,1705731044620,-500.0,0.00024657,2]
[312271668,1705731044629,-1331.01,0.00024657,2]
[312271669,1705731044638,-500.0,0.00024657,2]
[312271670,1705731044647,-518.44155607,0.00024657,2]
[312271671,1705731044657,-208.65086566,0.00024657,2]
[312271672,1705731044666,-500.0,0.00024657,2]
[312271673,1705731044675,-500.0,0.00024657,2]
[312271674,1705731044684,-500.0,0.00024657,2]